[Event "MČR v rapid šachu družstev 2019"]
[Site "Teplice, Czech Republic"]
[Date "2019.09.15"]
[Round "2.24"]
[White "Krouzel, Jaroslav"]
[Black "Lacina, Filip"]
[Result "1-0"]
[TimeControl "15 min. + 5s"]
[WhiteElo "2068"]
[BlackElo "2027"]

1. d4 {[%clk 00:15:06]} {[%emt 00:00:03]} f5 {[%clk 00:15:03]} {[%emt
00:00:07]} 2. e4 {[%clk 00:15:07]} {[%emt 00:00:04]} fxe4 {[%clk 00:15:07]}
{[%emt 00:00:01]} 3. Nc3 {[%clk 00:15:11]} {[%emt 00:00:02]} Nf6 {[%clk
00:15:09]} {[%emt 00:00:03]} 4. Bg5 {[%clk 00:15:14]} {[%emt 00:00:01]} b6
{[%clk 00:15:10]} {[%emt 00:00:04]} 5. Qd2 {[%clk 00:14:51]} {[%emt 00:00:27]}
d5 {[%clk 00:14:20]} {[%emt 00:00:55]} 6. f3 {[%clk 00:14:40]} {[%emt
00:00:18]} Bf5 {[%clk 00:12:11]} {[%emt 00:02:14]} 7. Nge2 {[%clk 00:14:04]}
{[%emt 00:00:41]} exf3 {[%clk 00:11:01]} {[%emt 00:01:14]} 8. gxf3 {[%clk
00:14:07]} {[%emt 00:00:02]} Qd7 {[%clk 00:08:03]} {[%emt 00:03:03]} 9. Ng3
{[%clk 00:13:21]} {[%emt 00:00:52]} Bg6 {[%clk 00:07:18]} {[%emt 00:00:49]} 10.
h4 {[%clk 00:12:32]} {[%emt 00:00:55]} e6 {[%clk 00:04:33]} {[%emt 00:02:49]}
11. h5 {[%clk 00:10:14]} {[%emt 00:02:24]} Bf7 {[%clk 00:04:32]} {[%emt
00:00:06]} 12. h6 {[%clk 00:09:53]} {[%emt 00:00:26]} Bg6 {[%clk 00:04:04]}
{[%emt 00:00:32]} 13. O-O-O {[%clk 00:09:15]} {[%emt 00:00:43]} c6 {[%clk
00:02:55]} {[%emt 00:01:14]} 14. Re1 {[%clk 00:08:45]} {[%emt 00:00:36]} Bf7
{[%clk 00:00:38]} {[%emt 00:02:22]} 15. Bh3 {[%clk 00:05:02]} {[%emt 00:03:48]}
Be7 {[%clk 00:00:14]} {[%emt 00:00:29]} 16. hxg7 {[%clk 00:04:19]} {[%emt
00:00:48]} Rg8 {[%clk 00:00:17]} {[%emt 00:00:01]} 17. Bh6 {[%clk 00:04:19]}
{[%emt 00:00:05]} Na6 {[%clk 00:00:19]} {[%emt 00:00:03]} 18. Nce2 {[%clk
00:02:43]} {[%emt 00:01:41]} Nc7 {[%clk 00:00:22]} {[%emt 00:00:02]} 19. Nf4
{[%clk 00:02:46]} {[%emt 00:00:03]} O-O-O {[%clk 00:00:16]} {[%emt 00:00:11]}
20. Qe3 {[%clk 00:02:24]} {[%emt 00:00:26]} Bd6 {[%clk 00:00:08]} {[%emt
00:00:14]} 21. Bg5 {[%emt 00:00:24]} 1-0

[Event "MČR v rapid šachu družstev 2019"]
[Site "Teplice, Czech Republic"]
[Date "2019.09.15"]
[Round "2.25"]
[White "Vojta, Tomas"]
[Black "Hons, Tomas"]
[Result "1-0"]
[TimeControl "15 min. + 5s"]
[WhiteElo "2402"]
[BlackElo "1976"]

1. e4 {[%clk 00:15:08]} {[%emt 00:00:02]} c5 {[%clk 00:15:07]} {[%emt
00:00:04]} 2. f4 {[%clk 00:15:11]} {[%emt 00:00:01]} d5 {[%clk 00:15:10]}
{[%emt 00:00:02]} 3. exd5 {[%clk 00:15:15]} {[%emt 00:00:02]} Qxd5 {[%clk
00:15:14]} {[%emt 00:00:01]} 4. Nc3 {[%clk 00:15:18]} {[%emt 00:00:02]} Qd8
{[%clk 00:15:17]} {[%emt 00:00:01]} 5. Nf3 {[%clk 00:15:22]} {[%emt 00:00:02]}
Nc6 {[%clk 00:15:17]} {[%emt 00:00:04]} 6. Ne5 {[%clk 00:14:49]} {[%emt
00:00:38]} Nd4 {[%clk 00:13:55]} {[%emt 00:01:26]} 7. Bc4 {[%clk 00:13:41]}
{[%emt 00:01:14]} e6 {[%clk 00:13:38]} {[%emt 00:00:22]} 8. O-O {[%clk
00:13:44]} {[%emt 00:00:03]} Nf6 {[%clk 00:13:40]} {[%emt 00:00:01]} 9. d3
{[%clk 00:13:34]} {[%emt 00:00:16]} Be7 {[%clk 00:13:38]} {[%emt 00:00:07]} 10.
a4 {[%clk 00:12:23]} {[%emt 00:01:17]} b6 {[%clk 00:12:31]} {[%emt 00:01:11]}
11. Ne4 {[%clk 00:12:13]} {[%emt 00:00:16]} O-O {[%clk 00:11:12]} {[%emt
00:01:23]} 12. c3 {[%clk 00:12:14]} {[%emt 00:00:05]} Nf5 {[%clk 00:11:14]}
{[%emt 00:00:02]} 13. Nc6 {[%clk 00:12:01]} {[%emt 00:00:19]} Qc7 {[%clk
00:11:16]} {[%emt 00:00:02]} 14. Nxe7+ {[%clk 00:11:59]} {[%emt 00:00:07]} Qxe7
{[%clk 00:11:16]} {[%emt 00:00:04]} 15. Qe2 {[%clk 00:11:49]} {[%emt 00:00:16]}
Bb7 {[%clk 00:11:10]} {[%emt 00:00:11]} 16. Bd2 {[%clk 00:10:57]} {[%emt
00:00:58]} Rfd8 {[%clk 00:10:06]} {[%emt 00:01:08]} 17. Ng5 {[%clk 00:10:47]}
{[%emt 00:00:15]} a6 {[%clk 00:09:37]} {[%emt 00:00:35]} 18. Rae1 {[%clk
00:10:37]} {[%emt 00:00:14]} Bd5 {[%clk 00:08:48]} {[%emt 00:00:54]} 19. Rd1
{[%clk 00:08:53]} {[%emt 00:01:49]} Rd7 {[%clk 00:07:53]} {[%emt 00:01:00]} 20.
Nf3 {[%clk 00:08:50]} {[%emt 00:00:09]} Bxc4 {[%clk 00:07:16]} {[%emt
00:00:42]} 21. dxc4 {[%clk 00:08:54]} Rad8 {[%clk 00:07:19]} {[%emt 00:00:01]}
22. Ne5 {[%clk 00:08:23]} {[%emt 00:00:37]} Rd6 {[%clk 00:07:22]} {[%emt
00:00:01]} 23. Bc1 {[%clk 00:08:24]} {[%emt 00:00:05]} Qc7 {[%clk 00:06:56]}
{[%emt 00:00:30]} 24. Rfe1 {[%clk 00:07:13]} {[%emt 00:01:16]} h6 {[%clk
00:06:04]} {[%emt 00:00:56]} 25. Qf3 {[%clk 00:06:35]} {[%emt 00:00:44]} Ne7
{[%clk 00:02:24]} {[%emt 00:03:45]} 26. h3 {[%clk 00:06:28]} {[%emt 00:00:12]}
Rxd1 {[%clk 00:02:09]} 27. Rxd1 {[%clk 00:06:33]} Rxd1+ 28. Qxd1 {[%clk
00:06:37]} Nc6 {[%clk 00:02:17]} 29. Qe2 {[%clk 00:05:07]} {[%emt 00:01:35]}
Qd6 {[%clk 00:02:07]} {[%emt 00:00:14]} 30. b3 {[%clk 00:04:15]} {[%emt
00:00:58]} Nd7 {[%clk 00:01:59]} {[%emt 00:00:12]} 31. Nf3 {[%clk 00:04:09]}
{[%emt 00:00:11]} Ne7 {[%clk 00:01:42]} {[%emt 00:00:23]} 32. Ne5 {[%clk
00:04:02]} {[%emt 00:00:12]} Nxe5 33. fxe5 {[%clk 00:04:06]} Qc7 {[%clk
00:01:17]} 34. Bf4 {[%clk 00:03:29]} {[%emt 00:00:42]} Ng6 {[%clk 00:01:21]}
{[%emt 00:00:02]} 35. Bg3 {[%clk 00:03:32]} {[%emt 00:00:02]} Qc6 {[%clk
00:01:25]} 36. Qd3 {[%clk 00:03:27]} {[%emt 00:00:10]} a5 {[%clk 00:01:17]}
{[%emt 00:00:12]} 37. Kh2 {[%clk 00:03:26]} {[%emt 00:00:06]} Qc7 {[%clk
00:01:03]} {[%emt 00:00:19]} 38. Qe4 {[%clk 00:03:29]} {[%emt 00:00:02]} Ne7
{[%clk 00:01:03]} {[%emt 00:00:05]} 39. Qa8+ {[%clk 00:03:11]} {[%emt
00:00:24]} Kh7 {[%clk 00:01:06]} {[%emt 00:00:02]} 40. Qe4+ {[%clk 00:03:14]}
{[%emt 00:00:02]} Kg8 {[%clk 00:00:48]} {[%emt 00:00:22]} 41. Qa8+ {[%clk
00:03:18]} {[%emt 00:00:02]} Qc8 {[%clk 00:00:39]} {[%emt 00:00:13]} 42. Qe4
{[%clk 00:03:07]} {[%emt 00:00:16]} Qc6 {[%clk 00:00:39]} {[%emt 00:00:05]} 43.
Qd3 {[%clk 00:03:06]} {[%emt 00:00:07]} Nf5 {[%clk 00:00:38]} {[%emt 00:00:05]}
44. Bf4 {[%clk 00:02:59]} {[%emt 00:00:07]} g5 {[%clk 00:00:21]} {[%emt
00:00:22]} 45. Bd2 {[%clk 00:02:48]} {[%emt 00:00:22]} Kg7 {[%clk 00:00:07]}
{[%emt 00:00:18]} 46. Be1 {[%clk 00:02:15]} {[%emt 00:00:39]} Qc7 {[%clk
00:00:00]} {[%emt 00:00:08]} 1-0

[Event "MČR v rapid šachu družstev 2019"]
[Site "Teplice, Czech Republic"]
[Date "2019.09.15"]
[Round "2.26"]
[White "Volek, Radomir"]
[Black "Zeman, Matyas"]
[Result "0-1"]
[TimeControl "15 min. + 5s"]
[WhiteElo "2125"]
[BlackElo "2247"]

1. e4 {[%clk 00:15:07]} {[%emt 00:00:02]} g6 {[%clk 00:15:08]} {[%emt
00:00:03]} 2. d4 {[%clk 00:15:11]} {[%emt 00:00:02]} Bg7 {[%clk 00:15:12]} 3.
Nf3 {[%clk 00:15:15]} c6 {[%clk 00:15:15]} {[%emt 00:00:02]} 4. Nc3 {[%clk
00:15:11]} {[%emt 00:00:09]} d5 {[%clk 00:15:18]} {[%emt 00:00:02]} 5. e5
{[%clk 00:15:14]} {[%emt 00:00:02]} Bg4 {[%clk 00:15:21]} {[%emt 00:00:02]} 6.
Be3 {[%clk 00:15:08]} {[%emt 00:00:11]} Nd7 {[%clk 00:15:22]} {[%emt 00:00:05]}
7. Be2 {[%clk 00:15:07]} {[%emt 00:00:06]} e6 {[%clk 00:15:09]} {[%emt
00:00:18]} 8. Qd2 {[%clk 00:14:40]} {[%emt 00:00:32]} h6 {[%clk 00:14:37]}
{[%emt 00:00:36]} 9. h3 {[%clk 00:13:58]} {[%emt 00:00:47]} Bxf3 {[%clk
00:14:40]} {[%emt 00:00:02]} 10. Bxf3 {[%clk 00:13:23]} {[%emt 00:00:40]} Ne7
{[%clk 00:14:41]} {[%emt 00:00:04]} 11. Be2 {[%clk 00:13:21]} {[%emt 00:00:08]}
Nf5 {[%clk 00:14:40]} {[%emt 00:00:06]} 12. f4 {[%clk 00:12:41]} {[%emt
00:00:45]} Nxe3 {[%clk 00:14:42]} {[%emt 00:00:02]} 13. Qxe3 {[%clk 00:12:45]}
{[%emt 00:00:02]} h5 {[%clk 00:14:44]} {[%emt 00:00:03]} 14. O-O-O {[%clk
00:12:44]} {[%emt 00:00:05]} h4 {[%clk 00:14:48]} {[%emt 00:00:02]} 15. g4
{[%clk 00:12:45]} {[%emt 00:00:03]} hxg3 {[%clk 00:14:51]} {[%emt 00:00:02]} 16.
Qxg3 {[%clk 00:12:49]} Qh4 {[%clk 00:14:55]} {[%emt 00:00:02]} 17. Qg4 {[%clk
00:12:25]} {[%emt 00:00:29]} a6 {[%clk 00:14:34]} {[%emt 00:00:25]} 18. Na4
{[%clk 00:12:00]} {[%emt 00:00:29]} b5 {[%clk 00:14:28]} {[%emt 00:00:12]} 19.
Nc5 {[%clk 00:12:04]} {[%emt 00:00:01]} Nxc5 {[%clk 00:14:22]} {[%emt
00:00:12]} 20. dxc5 {[%clk 00:12:07]} {[%emt 00:00:02]} Bf8 {[%clk 00:14:21]}
{[%emt 00:00:06]} 21. b4 {[%clk 00:11:40]} {[%emt 00:00:32]} a5 {[%clk
00:14:24]} {[%emt 00:00:01]} 22. a3 {[%clk 00:11:44]} axb4 {[%clk 00:14:24]}
{[%emt 00:00:06]} 23. axb4 {[%clk 00:11:47]} {[%emt 00:00:02]} Qxg4 {[%clk
00:14:04]} {[%emt 00:00:26]} 24. hxg4 {[%clk 00:11:50]} {[%emt 00:00:02]} Ra1+
{[%clk 00:14:07]} {[%emt 00:00:01]} 25. Kb2 {[%clk 00:11:48]} {[%emt 00:00:07]}
Rxd1 {[%clk 00:14:00]} {[%emt 00:00:14]} 26. Rxh8 {[%clk 00:11:24]} {[%emt
00:00:28]} Rd4 {[%clk 00:14:01]} {[%emt 00:00:03]} 27. f5 {[%clk 00:10:53]}
{[%emt 00:00:36]} Rxb4+ {[%clk 00:13:23]} {[%emt 00:00:43]} 28. Kc3 {[%clk
00:10:35]} {[%emt 00:00:22]} Re4 {[%clk 00:13:27]} {[%emt 00:00:02]} 29. fxg6
{[%clk 00:10:08]} {[%emt 00:00:32]} fxg6 {[%clk 00:13:31]} {[%emt 00:00:02]} 30.
Bf3 {[%clk 00:04:39]} {[%emt 00:05:34]} Rxe5 {[%clk 00:13:29]} {[%emt
00:00:06]} 31. Kb4 {[%clk 00:04:43]} {[%emt 00:00:02]} Re3 {[%clk 00:13:09]}
{[%emt 00:00:25]} 32. Bd1 {[%clk 00:03:52]} {[%emt 00:00:56]} Re1 {[%clk
00:12:50]} {[%emt 00:00:24]} 33. Bf3 {[%clk 00:03:54]} {[%emt 00:00:03]} Ra1
{[%clk 00:12:40]} {[%emt 00:00:14]} 34. Be2 {[%clk 00:03:44]} {[%emt 00:00:15]}
Ra4+ {[%clk 00:12:17]} {[%emt 00:00:28]} 35. Kb3 {[%clk 00:03:29]} {[%emt
00:00:20]} Re4 {[%clk 00:11:25]} {[%emt 00:00:57]} 36. Bd1 {[%clk 00:03:29]}
{[%emt 00:00:05]} Kf7 {[%clk 00:11:20]} {[%emt 00:00:10]} 37. Rh7+ {[%clk
00:03:07]} {[%emt 00:00:27]} Bg7 {[%clk 00:11:23]} {[%emt 00:00:02]} 0-1

[Event "MČR v rapid šachu družstev 2019"]
[Site "Teplice, Czech Republic"]
[Date "2019.09.15"]
[Round "2.27"]
[White "Svanda, Ondrej"]
[Black "Reitinger, Petr"]
[Result "1/2-1/2"]
[TimeControl "15 min. + 5s"]
[WhiteElo "1920"]
[BlackElo "1958"]

1. e4 {[%clk 00:15:09]} Nf6 {[%clk 00:15:08]} {[%emt 00:00:02]} 2. e5 {[%clk
00:15:12]} {[%emt 00:00:03]} Nd5 {[%clk 00:15:12]} {[%emt 00:00:01]} 3. d4
{[%clk 00:15:17]} d6 {[%clk 00:15:16]} 4. Nf3 {[%clk 00:15:21]} Bg4 {[%clk
00:15:17]} {[%emt 00:00:04]} 5. Be2 {[%clk 00:15:19]} {[%emt 00:00:07]} c6
{[%clk 00:15:21]} {[%emt 00:00:01]} 6. O-O {[%clk 00:15:20]} {[%emt 00:00:04]}
g6 {[%clk 00:15:20]} {[%emt 00:00:06]} 7. exd6 {[%clk 00:15:09]} {[%emt
00:00:17]} Qxd6 {[%clk 00:15:05]} {[%emt 00:00:20]} 8. h3 {[%clk 00:15:12]}
Bxf3 {[%clk 00:14:50]} {[%emt 00:00:20]} 9. Bxf3 {[%clk 00:15:17]} {[%emt
00:00:01]} Bg7 {[%clk 00:14:47]} {[%emt 00:00:08]} 10. c4 {[%clk 00:15:19]}
{[%emt 00:00:03]} Nf6 {[%clk 00:14:14]} {[%emt 00:00:37]} 11. Nc3 {[%clk
00:15:20]} {[%emt 00:00:04]} O-O {[%clk 00:14:16]} {[%emt 00:00:03]} 12. Be3
{[%clk 00:15:19]} {[%emt 00:00:06]} Nbd7 {[%clk 00:13:50]} {[%emt 00:00:31]} 13.
Qc2 {[%clk 00:15:22]} {[%emt 00:00:02]} e5 {[%clk 00:13:47]} {[%emt 00:00:08]}
14. d5 {[%clk 00:15:12]} {[%emt 00:00:16]} cxd5 {[%clk 00:13:16]} {[%emt
00:00:36]} 15. cxd5 {[%clk 00:15:09]} {[%emt 00:00:08]} Rac8 {[%clk 00:12:53]}
{[%emt 00:00:28]} 16. Rfd1 {[%clk 00:14:56]} {[%emt 00:00:18]} e4 {[%clk
00:12:54]} {[%emt 00:00:04]} 17. Bxe4 {[%clk 00:14:18]} {[%emt 00:00:43]} Nxe4
{[%clk 00:12:54]} {[%emt 00:00:04]} 18. Qxe4 {[%clk 00:13:50]} {[%emt
00:00:33]} Rfe8 {[%clk 00:12:28]} {[%emt 00:00:31]} 19. Qd3 {[%clk 00:13:21]}
{[%emt 00:00:35]} Ne5 {[%clk 00:11:42]} {[%emt 00:00:50]} 20. Qb5 {[%clk
00:13:01]} {[%emt 00:00:25]} Nc4 {[%clk 00:11:25]} {[%emt 00:00:22]} 21. Bd4
{[%clk 00:12:09]} {[%emt 00:00:58]} a6 {[%clk 00:10:10]} {[%emt 00:01:20]} 22.
Qb3 {[%clk 00:09:44]} {[%emt 00:02:30]} b5 {[%clk 00:10:07]} {[%emt 00:00:07]}
23. Bxg7 {[%clk 00:09:34]} {[%emt 00:00:15]} Kxg7 {[%clk 00:10:11]} {[%emt
00:00:01]} 24. Re1 {[%clk 00:08:28]} {[%emt 00:01:11]} Qf4 {[%clk 00:09:36]}
{[%emt 00:00:41]} 25. Rxe8 {[%clk 00:07:13]} {[%emt 00:01:20]} Rxe8 {[%clk
00:09:39]} {[%emt 00:00:01]} 26. Rd1 {[%clk 00:07:18]} Qe5 {[%clk 00:08:12]}
{[%emt 00:01:32]} 27. Qc2 {[%clk 00:05:21]} {[%emt 00:02:01]} Rc8 {[%clk
00:08:03]} {[%emt 00:00:14]} 28. a3 {[%clk 00:02:00]} {[%emt 00:03:27]} Nxb2
{[%clk 00:08:00]} {[%emt 00:00:08]} 29. Qxb2 {[%clk 00:02:02]} {[%emt
00:00:02]} Qxc3 {[%clk 00:08:04]} {[%emt 00:00:01]} 30. Qxc3+ {[%clk 00:00:33]}
{[%emt 00:01:35]} Rxc3 {[%clk 00:08:08]} {[%emt 00:00:01]} 31. d6 {[%clk
00:00:37]} Rc8 32. d7 {[%emt 00:00:01]} Rd8 {[%clk 00:08:16]} 33. Rd6 {[%clk
00:00:46]} {[%emt 00:00:01]} a5 {[%emt 00:00:11]} 34. Rd5 {[%clk 00:00:49]}
{[%emt 00:00:01]} b4 {[%clk 00:08:15]} 35. axb4 {[%clk 00:00:53]} axb4 {[%clk
00:08:19]} {[%emt 00:00:01]} 36. Rb5 {[%clk 00:00:55]} {[%emt 00:00:03]} Rxd7
{[%clk 00:08:22]} {[%emt 00:00:02]} 37. Rxb4 {[%clk 00:00:59]} {[%emt
00:00:02]} 1/2-1/2

[Event "MČR v rapid šachu družstev 2019"]
[Site "Teplice, Czech Republic"]
[Date "2019.09.15"]
[Round "2.28"]
[White "Majerik, Vladimir"]
[Black "Skacelik, Petr"]
[Result "1/2-1/2"]
[TimeControl "15 min. + 5s"]
[WhiteElo "1857"]
[BlackElo "2096"]

1. d4 {[%clk 00:15:06]} {[%emt 00:00:03]} Nf6 {[%clk 00:15:09]} 2. Nf3 {[%emt
00:00:03]} g6 3. Bg5 {[%clk 00:15:11]} {[%emt 00:00:02]} Bg7 {[%clk 00:15:18]}
4. Nbd2 {[%clk 00:15:15]} {[%emt 00:00:03]} h6 {[%clk 00:15:21]} {[%emt
00:00:03]} 5. Bh4 {[%clk 00:15:18]} d6 {[%clk 00:15:24]} {[%emt 00:00:02]} 6.
e4 {[%clk 00:15:20]} {[%emt 00:00:02]} g5 {[%clk 00:15:26]} {[%emt 00:00:03]} 7.
Bg3 {[%clk 00:15:24]} {[%emt 00:00:02]} Nh5 {[%clk 00:15:30]} 8. c3 {[%clk
00:15:21]} {[%emt 00:00:07]} Nd7 {[%clk 00:15:33]} {[%emt 00:00:02]} 9. Be2
{[%clk 00:15:16]} {[%emt 00:00:11]} e5 {[%clk 00:15:28]} {[%emt 00:00:10]} 10.
dxe5 {[%clk 00:15:18]} {[%emt 00:00:03]} dxe5 {[%clk 00:15:33]} {[%emt
00:00:01]} 11. O-O {[%clk 00:15:18]} {[%emt 00:00:04]} Nf4 {[%clk 00:15:36]}
{[%emt 00:00:02]} 12. Bc4 {[%clk 00:14:23]} {[%emt 00:01:00]} O-O {[%clk
00:15:39]} {[%emt 00:00:02]} 13. Re1 {[%clk 00:13:53]} {[%emt 00:00:34]} Qe7
{[%clk 00:15:33]} {[%emt 00:00:12]} 14. Qc2 {[%clk 00:13:52]} {[%emt 00:00:05]}
c6 {[%clk 00:15:36]} {[%emt 00:00:04]} 15. Rad1 {[%clk 00:13:43]} {[%emt
00:00:12]} b5 {[%clk 00:15:36]} {[%emt 00:00:05]} 16. Bf1 {[%clk 00:13:19]}
{[%emt 00:00:29]} Nc5 {[%clk 00:15:28]} {[%emt 00:00:13]} 17. Bxf4 {[%clk
00:13:02]} {[%emt 00:00:22]} gxf4 {[%clk 00:15:13]} {[%emt 00:00:21]} 18. h3
{[%clk 00:12:26]} {[%emt 00:00:40]} Kh8 {[%clk 00:14:57]} {[%emt 00:00:22]} 19.
Nb3 {[%clk 00:12:14]} {[%emt 00:00:17]} Nxb3 {[%clk 00:14:13]} {[%emt
00:00:49]} 20. axb3 {[%clk 00:12:04]} {[%emt 00:00:14]} Rg8 {[%clk 00:14:10]}
{[%emt 00:00:09]} 21. Qd3 {[%clk 00:11:59]} {[%emt 00:00:10]} Bf8 {[%clk
00:12:57]} {[%emt 00:01:17]} 22. Kh2 {[%clk 00:11:43]} {[%emt 00:00:22]} Be6
{[%clk 00:11:21]} {[%emt 00:01:41]} 23. c4 {[%clk 00:11:05]} {[%emt 00:00:43]}
bxc4 {[%clk 00:11:14]} {[%emt 00:00:12]} 24. bxc4 {[%clk 00:11:01]} {[%emt
00:00:08]} Qc7 {[%clk 00:11:02]} {[%emt 00:00:17]} 25. Qc3 {[%clk 00:10:28]}
{[%emt 00:00:38]} f6 {[%clk 00:11:06]} 26. c5 {[%clk 00:08:39]} {[%emt
00:01:55]} a5 {[%clk 00:09:44]} {[%emt 00:01:28]} 27. Bc4 {[%clk 00:08:07]}
{[%emt 00:00:37]} Qf7 {[%clk 00:09:14]} {[%emt 00:00:33]} 28. Bxe6 {[%clk
00:08:05]} {[%emt 00:00:08]} Qxe6 {[%clk 00:09:19]} 29. Nh4 {[%clk 00:07:27]}
{[%emt 00:00:43]} Be7 {[%clk 00:08:54]} {[%emt 00:00:30]} 30. Nf5 {[%clk
00:07:22]} {[%emt 00:00:10]} Rgb8 {[%clk 00:08:01]} {[%emt 00:00:58]} 31. Nxe7
{[%clk 00:05:53]} {[%emt 00:01:35]} Qxe7 {[%clk 00:08:05]} {[%emt 00:00:01]} 32.
Rd6 {[%clk 00:05:46]} {[%emt 00:00:12]} Kg7 {[%clk 00:07:11]} {[%emt 00:00:58]}
33. Red1 {[%clk 00:05:37]} {[%emt 00:00:15]} Rd8 {[%clk 00:06:43]} {[%emt
00:00:33]} 34. Rxd8 {[%clk 00:04:38]} {[%emt 00:01:03]} Rxd8 {[%clk 00:06:48]}
35. Rxd8 {[%clk 00:04:24]} {[%emt 00:00:20]} Qxd8 {[%clk 00:06:51]} {[%emt
00:00:01]} 36. Qc4 {[%clk 00:04:10]} {[%emt 00:00:19]} Qd2 {[%clk 00:06:43]}
{[%emt 00:00:13]} 37. Qe6 {[%clk 00:03:23]} {[%emt 00:00:52]} Qd8 {[%emt
00:01:04]} 1/2-1/2